Cogmind - Beta 13 @@@ ROGUE MODE // 2024.04.15 @ 17:00:21 Player: lever1209 Result: Destroyed by L-31 Rogue with Katana Performance ------------- Evolutions (1) 500 Regions Visited (3) 600 Robots Destroyed (26) 130 Value Destroyed (556) 556 Prototype IDs (1) 20 Alien Tech Used (0) 0 Bonus (30) 30 TOTAL SCORE: 1836 Bonus ------- Follower Combat Kills 35 Friendly Fire -5 Cogmind --------- Core Integrity 0/400 Matter 230/300 Energy 84/100 System Corruption 0% Temperature Cool (0) Movement Core (350) Ox6 Location -9/Materials Parts ------- > --- POWER (1) -------- (None) > --- PROPULSION (2) --- (None) > --- UTILITY (4) ------ Large Storage Unit > --- WEAPON (2) ------- (None) > --- INVENTORY (15) --- Light Ion Engine Light Ion Engine Light Nuclear Core Light Nuclear Core Light Nuclear Core Light Nuclear Core Medium Matter Pod (100) Compact Matter Pod (150) Experimental Sensor Array System Shield Beam Rifle Signal Generator Peak State ------------ > --- POWER ------------ Light Nuclear Core > --- PROPULSION ------- Wheel > --- UTILITY ---------- Large Storage Unit Experimental Sensor Array > --- WEAPON ----------- Medium Laser Small Laser > --- INVENTORY -------- Light Ion Engine Light Ion Engine Medium Matter Pod Compact Matter Pod Light Armor Plating System Shield Light Assault Rifle Grenade Launcher Grenade Launcher Grenade Launcher [Rating: 17] Favorites ----------- Power Light Nuclear Core Engine Light Ion Engine Power Core Light Nuclear Core Propulsion Wheel Wheel Wheel Flight Unit Flight Unit Utility Large Storage Unit Device Experimental Sensor Array Storage Large Storage Unit Protection Light Armor Plating Weapon Medium Laser Energy Gun Medium Laser Ballistic Gun Light Assault Rifle Launcher Grenade Launcher Build | -11 -10 -10 -9 ------- Run | Yrd Mat Min Mat Slots Evolved 2 | . . . 2 Power . | . . . . Propulsion . | . . . . Utility 2 | . . . 2 Weapon . | . . . . Parts Attached 19 | 6 3 5 5 Power 3 | 1 1 1 . Engine 1 | 1 . . . Core 2 | . 1 1 . Reactor . | . . . . Propulsion 3 | 2 . 1 . Treads . | . . . . Leg . | . . . . Wheel 2 | 2 . . . Hover . | . . . . Flight 1 | . . 1 . Utility 5 | 1 2 2 . Device 1 | . . 1 . Storage 2 | 1 1 . . Processor . | . . . . Hackware . | . . . . Protection 2 | . 1 1 . Artifact . | . . . . Weapon 8 | 2 . 1 5 Energy Gun 3 | 2 . . 1 Energy Cannon . | . . . . Ballistic Gun 1 | . . . 1 Ballistic Cannon . | . . . . Launcher 4 | . . 1 3 Special Weapon . | . . . . Impact Weapon . | . . . . Slashing Weapon . | . . . . Piercing Weapon . | . . . . Special Melee Weapon . | . . . . Unidentified Prototypes 1 | . . 1 . Parts Lost 10 | . . 3 7 Power 2 | . . 1 1 Propulsion 2 | . . 1 1 Utility 1 | . . 1 . Weapon 5 | . . . 5 Highest Loss Streak 6 | . . 2 6 To Critical Strikes . | . . . . Average Slot Usage (%) 80 | . 93 83 52 Engine 1 | . 8 . . Core 8 | . 5 9 10 Wheel 20 | . 28 21 9 Storage 13 | . 14 14 11 Protection 7 | . 7 8 . Energy Gun 21 | . 28 23 9 Ballistic Gun 1 | . . . 7 Launcher 3 | . . 4 5 Naked Turns . | . . . . Heaviest Build 31 | 11 31 31 30 Greatest Support 20 | 20 20 20 10 Greatest Overweight (x) 8 | 2 1 3 8 Average Overweight (x) 1 | . . 1 2 Largest Inventory Capacity 15 | 8 15 15 15 Average Capacity 13 | 7 10 15 15 Most Carried 15 | 2 7 11 15 Average Carried 8 | . 4 9 10 Final Capacity 15 | 8 15 15 15 Final Carried 12 | 2 6 10 12 Class Distribution -------------------- 100% | Mutant Dominant Class ---------------- Mutant | -10/Materials Mutant | -10/Mines Mutant | -9/Materials Resources | -11 -10 -10 -9 ----------- Run | Yrd Mat Min Mat Matter Collected 621 | 223 82 289 27 Remotely . | . . . . Salvage Created 562 | . 82 217 263 Parts 50 | . 3 16 31 Haulers Intercepted . | . . . . Recyclers Shooed . | . . . . Parts Field Recycled . | . . . . Retrieved Matter . | . . . . Parts Self-Destructed . | . . . . Prevented . | . . . . Kills | -11 -10 -10 -9 ------- Run | Yrd Mat Min Mat Combat Hostiles Destroyed 18 | . 2 10 6 Guns 12 | . 2 8 2 AOE 6 | . . 2 4 Classes Destroyed 5 | . 1 1 3 Builder 7 | . . . 7 Recycler 1 | . . . 1 Swarmer 6 | . . 6 . Grunt 11 | . 2 4 5 Sentry 1 | . . . 1 Best Kill Streak 9 | . 1 4 9 Combat Bots Only 4 | . 1 4 2 Max Kills in Single Turn 3 | . 1 2 3 Gunslinging . | . . . . Exploded 2 | . . 2 2 Melee . | . . . . Uniques/NPCs Destroyed . | . . . . Combat | -11 -10 -10 -9 -------- Run | Yrd Mat Min Mat Hostile Shots Fired 123 | . 16 57 50 Missed 32 | . 5 17 10 Damage Taken 1386 | . 147 383 856 Core 523 | . 35 84 404 Absorbed by Shields . | . . . . Core Remaining (%) 76 | 100 . 52 . Volleys Fired 62 | . 13 29 20 Largest 2 | . 2 2 2 Hottest 90 | . 90 90 80 Shots Fired 90 | . 18 43 29 Gun 83 | . 18 42 23 Cannon . | . . . . Launcher 7 | . . 1 6 Special . | . . . . Kinetic 15 | . . . 15 Thermal 68 | . 18 42 8 Explosive 7 | . . 1 6 Electromagnetic . | . . . . Robot Hit Streak 12 | . 4 12 11 Robot Miss Streak 3 | . 2 3 2 Penetration Max . | . . . . Secondary Targets 1 | . 1 . . Max Gunslinging Chain 1 | . 1 . . Shots Hit Robots 60 | . 11 28 21 Core Hits 48 | . 5 14 29 Critical Kills . | . . . . Critical Parts Destroyed . | . . . . Critical Strikes 4 | . . 3 1 Burn 4 | . . 3 1 Melee Attacks . | . . . . Impact . | . . . . Slashing . | . . . . Piercing . | . . . . Sneak Attacks . | . . . . Combat Hostiles . | . . . . Follow-up Attacks . | . . . . Damage Inflicted 1703 | . 133 469 1101 Guns 621 | . 133 337 151 Cannons . | . . . . Explosions 1082 | . . 132 950 Melee . | . . . . Ramming . | . . . . Kinetic 101 | . . . 101 Thermal 714 | . 133 337 244 Explosive 888 | . . 132 756 Electromagnetic . | . . . . Impact . | . . . . Slashing . | . . . . Piercing . | . . . . Highest Corruption . | . . . . Average Corruption . | . . . . Corruption Purged . | . . . . Corruption Blocked . | . . . . Overload Shots . | . . . . Overflow Damage 89 | . . . 89 Projectiles . | . . . . Explosions 89 | . . . 89 Melee . | . . . . Knockbacks . | . . . . Impact . | . . . . Kinetic . | . . . . Secondary . | . . . . Self-Inflicted Damage 89 | . . 9 80 Shots 5 | . . 1 4 Rammed . | . . . . Targets Rammed . | . . . . Kicked . | . . . . Crushed . | . . . . Highest Temperature 375 | . 320 375 44 Average Temperature 127 | . 175 132 16 Received Heat Transfer 351 | . 81 111 159 Effects 8 | . 4 4 . Energy Bleed 4 | . 3 1 . Interference 3 | . 1 2 . Matter Decay 1 | . . 1 . Siege Activations . | . . . . Robots Corrupted . | . . . . Combat Hostiles . | . . . . Parts Fried . | . . . . Impact Corruptions . | . . . . Robots Melted . | . . . . Combat Hostiles . | . . . . Parts Melted 2 | . . 2 . Heat Transferred 1905 | . 371 1162 372 Parts Sabotaged . | . . . . Parts Stolen . | . . . . Parts Stripped . | . . . . Power Chain Reactions . | . . . . Alert | -11 -10 -10 -9 ------- Run | Yrd Mat Min Mat Peak Influence 205 | . 95 130 205 Initial 36 | . . 36 35 Average 75 | . 55 87 79 Maximum Alert Level 1 | . . . 1 Low Security (%) 99 | 100 100 100 99 Level 1 . | . . . . Level 2 . | . . . . Level 3 . | . . . . Level 4 . | . . . . Level 5 . | . . . . High Security . | . . . . Max Security . | . . . . Squads Dispatched 3 | . . 2 1 Investigation 1 | . . 1 . Extermination . | . . . . Reinforcement 1 | . . . 1 Assault 1 | . . 1 . Garrison . | . . . . Intercept . | . . . . Searches Triggered . | . . . . Construction Impeded 1 | . . . 1 Haulers Reinforced . | . . . . Active Scanning Responses . | . . . . Cargo Convoy Interrupts . | . . . . Stealth | -11 -10 -10 -9 --------- Run | Yrd Mat Min Mat Distress Signals . | . . . . Communications Jammed . | . . . . Distress Signals . | . . . . Times Spotted 27 | . 4 12 11 Peak Tracking Total 4 | . 2 4 4 Tactical Retreats . | . . . . Traps | -11 -10 -10 -9 ------- Run | Yrd Mat Min Mat Traps Triggered . | . . . . Indirectly . | . . . . Trap Hack Attempts . | . . . . Triggered . | . . . . Disarmed . | . . . . Reprogrammed . | . . . . Reused . | . . . . Traps Extracted . | . . . . Installed . | . . . . Triggered . | . . . . Machines | -11 -10 -10 -9 ---------- Run | Yrd Mat Min Mat Machines Disabled 1 | . . . 1 Max in Single Turn 1 | . . . 1 Machines Repaired . | . . . . Machines Dismantled . | . . . . Machines Sabotaged . | . . . . Overloaded Fab Kills . | . . . . Hacking | -11 -10 -10 -9 --------- Run | Yrd Mat Min Mat Machines Accessed 2 | . 1 1 . Terminals 1 | . 1 . . Fabricators . | . . . . Repair Stations . | . . . . Recycling Units . | . . . . Scanalyzers . | . . . . Garrison Access . | . . . . Total Hacks 4 | . 3 1 . Successful 3 | . 2 1 . Failed 1 | . 1 . . Catastrophic 1 | . 1 . . Database Lockouts . | . . . . Manual 1 | . 1 . . Terminals 3 | . 3 . . Fabricators . | . . . . Repair Stations . | . . . . Recycling Units . | . . . . Scanalyzers . | . . . . Garrison Access . | . . . . Terminal Hacks 3 | . 2 1 . Record 2 | . 2 . . Open Door 1 | . . 1 . Fabricator Hacks . | . . . . Repair Station Hacks . | . . . . Recycling Unit Hacks . | . . . . Scanalyzer . | . . . . Garrison Access Hacks . | . . . . Unauthorized Hacks . | . . . . Terminals . | . . . . Fabricators . | . . . . Repair Stations . | . . . . Recycling Units . | . . . . Scanalyzers . | . . . . Garrison Access . | . . . . Data Cores Recovered . | . . . . Used . | . . . . Hacking Detections 1 | . 1 . . Full Trace Events . | . . . . Feedback Events . | . . . . Feedback Blocked . | . . . . Robot Schematics Acquired . | . . . . Robots Built . | . . . . Authchips . | . . . . Time . | . . . . Total Robot Build Rating . | . . . . Part Schematics Acquired . | . . . . Parts Built . | . . . . Authchips . | . . . . Time . | . . . . Total Part Build Rating . | . . . . Parts Repaired . | . . . . Time . | . . . . Parts Recycled . | . . . . Recycled Matter . | . . . . Retrieved Matter . | . . . . Retrieved Components . | . . . . Parts Scanalyzed . | . . . . Part Schematics Acquired . | . . . . Parts Damaged . | . . . . Bothacking | -11 -10 -10 -9 ------------ Run | Yrd Mat Min Mat Used RIF Installer . | . . . . Robots Hacked . | . . . . Non-combat . | . . . . Combat . | . . . . Robot Hacks Applied . | . . . . Relay Couplers Released . | . . . . Fabnet Peak Effective % . | . . . . Robots Rewired . | . . . . Allies Hacked . | . . . . Hacks Repelled . | . . . . Allies | -11 -10 -10 -9 -------- Run | Yrd Mat Min Mat Total Allies 3 | . . 3 . Largest Group 2 | . . 2 . Highest-Rated Group 42 | . . 42 . Highest-Rated Ally 31 | . . 31 . Total Orders . | . . . . Ally Attacks 11 | . . 11 . Total Damage 170 | . . 170 . Kills 1 | . . 1 . Allies Corrupted . | . . . . Allies Melted . | . . . . Intel | -11 -10 -10 -9 ------- Run | Yrd Mat Min Mat Robot Analysis Total . | . . . . Derelict Logs Recovered 1 | . . 1 . Drone Launches . | . . . . Drone Recoveries . | . . . . Exploration | -11 -10 -10 -9 ------------- Run | Yrd Mat Min Mat Turns Passed 1363 | 53 307 783 220 Spaces Moved 1180 | 56 311 670 143 Core 20 | 18 . . 2 Treads . | . . . . Legs . | . . . . Wheels 1160 | 38 311 670 141 Hover . | . . . . Flight . | . . . . Fastest Speed 50 | 50 80 95 110 Average Speed 98 | 74 84 102 114 Slowest Speed 450 | 150 95 125 450 Overloaded Moves . | . . . . Propulsion Burnouts . | . . . . Robots Hopped . | . . . . Cave-ins Triggered . | . . . . Exploration Rate (%) 40 | 3 47 95 15 Regions Visited 3 Branch Regions 1 Pre-discovered Areas . | . . . . Known Exits Taken . | . . . . Unknown Exits Taken 3 | 1 1 1 . Scrap Searched 1 | . . 1 . Spaces Dug . | . . . . Terrain Destroyed 43 | . . 6 37 Melee . | . . . . Projectile . | . . . . AOE 43 | . . 6 37 Terrain Rammed . | . . . . Walls Destroyed . | . . . . Machines Disabled . | . . . . Actions | -11 -10 -10 -9 --------- Run | Yrd Mat Min Mat Total 1295 | 64 334 723 174 Wait 14 | . 4 10 . Move 1177 | 55 310 669 143 Hop . | . . . . Pick Up 18 | 3 3 6 6 Fast Attach 7 | 5 1 1 . Attach 9 | 1 . 4 4 Detach 2 | . . 2 . Swap 3 | . 2 . 1 Drop 3 | . 1 2 . Fire 62 | . 13 29 20 Melee . | . . . . Ram . | . . . . Kick . | . . . . Crush . | . . . . Escape Stasis . | . . . . Rewire . | . . . . Trap . | . . . . Miscellaneous . | . . . . Route ------- -11/Scrapyard -10/Materials (discovered 2 exits: [*Mat] / *Min) -10/Mines (discovered 2 exits: [*Mat x2]) -9/Materials (discovered 1 exit: [*Min]) History --------- Turn | Location | Event 4 | -11/Scrapyard | Discovered new exit (range 15) 54 | -11/Scrapyard | Entered Materials 135 | -10/Materials | Discovered new exit (range 11) 177 | -10/Materials | Discovered new exit (range 16) 300 | -10/Materials | Build established: Mutant 361 | -10/Materials | Entered Mines 497 | -10/Mines | Learned Materials emergency access door positions 545 | -10/Mines | Met a Derelict shopkeep closing up shop 794 | -10/Mines | Found a damaged Exp. Sensor Array with a note attached 796 | -10/Mines | Found Prototype Device 798 | -10/Mines | Identified Exp. Sensor Array 811 | -10/Mines | Met a Derelict testing a Signal Generator 821 | -10/Mines | Found Signal Generator 992 | -10/Mines | Discovered new exit (range 9) 1043 | -10/Mines | Discovered new exit (range 4) 1144 | -10/Mines | Entered Materials 1144 | -9/Materials | Evolved 2 slots: Utility x2 1150 | -9/Materials | Discovered new exit (range 13) 1354 | -9/Materials | Core integrity fell below 50% 1363 | -9/Materials | Core integrity fell below 20% 1364 | -9/Materials | Destroyed by L-31 Rogue with Katana Last Messages --------------- 01351_ U-05 Engineer destroyed. 01351_ Destroyed Tractor Beam. 01351_ U-05 Engineer lays Concrete. 01353_ U-05 Engineer destroyed. 01353_ U-05 Engineer forms the Earth. 01354_ U-05 Engineer builds a Wall. 01355_ U-05 Engineer destroyed. 01355_ U-05 Engineer lays Concrete. 01356_ U-05 Engineer builds a Wall. 01356_ Grenade Launcher destroyed. 01357_ U-05 Engineer lays Concrete. 01359_ G-34 Mercenary destroyed. 01359_ U-05 Engineer lays Concrete. 01360_ Grenade Launcher severed. 01360_ U-05 Engineer lays Concrete. 01361_ Fusion Modulator explodes. 01361_ Destroyed Wheel. 01361_ U-05 Engineer destroyed. 01361_ Destroyed Imp. Ion Engine. 01362_ Med. Laser destroyed. Map ----- +----------------------------------------------------+ | ?????????????????????????????????????????????????? | | ?????????????????????????????????????????????????? | | ?????????????????????????????????????????????????? | | ?????????????????????????????????????????????????? | | ?????????????????????????????????????????????????? | | ?????????????????????????????????????????????????? | | ?????????????????????????????????????????????????? | | ?????????????????????????????????????????????????? | | ?????????????????????????????????????????????????? | | ?????????????????????????????????????????????????? | | ?????????????????????????????????????????????????? | | ?????????????????????????????????????????????????? | | ?????????????????????????????????????????????????? | | ?????????????????????????????????????????????????? | | ?????????????????????????????????????????????????? | | ?????????????????????????????????????????????????? | | ?????????????????????????????????????????????????? | | ?????????????????????????????????????????????????? | | ?????????????????????????????????????????????????? | | ?????????????????????????????????????????????????? | | ?????????????????????????????????????????????????? | | ?????????????????????????????????????????????????? | | ?????????????????????????????????????????????????? | | ???????????????????????#####?????????????????????? | | ?????????????????????# # ##????????????????????? | | ?????????????????????#// @l #???????? ??????????? | | ???????????????????# // l* ###?? #????????? | | ????????????? ?????# = = # #????????? | | ?????????? ##### |[;###! #????????? | | ?????????? ==! =%*m==%= #????????? | | ?????????? ==! ! % =;;########???????????? | | ?????????? ==! ; ###????????????????? | | ??????????# |; # "????????????????? | | ??????????# ; # ?????????????? | | ???????????? "" = ;## """??????????????? | | ???######????"Y ! ;## """??????????????? | | ???# ???? "" r!! ## ""???????????????? | | ???# ?? [!! #?# ???????????????? | | ???# ?? [!! t #?# ????????????????? | | ???# #???############## #?# ????????????????? | | ???# #????????????????# ###+########?????????? | | ???# #?????#######????# ## #?????????? | | ???# ####### #????# ## #?????????? | | #### #????# ## +?????????? | | # < #????# ## #?????????? | | # #???## ## #?????????? | | " + ####### #???# # #?????????? | | " # #?????## ##???# =[# #?????????? | | " # #??????# #????# %+* #?????????? | | # #??????# ####?# !=###+#######?????????? | +----------------------------------------------------+ Best States ------------- Heat Dissipation 28 Energy Generation 14 Energy Capacity 160 Matter Stores 300 Matter Capacity 300 Sight Range 16 Terrain Scan Density 10 Armor Coverage 150 Evasion (%) 50 Item Schematics ----------------- None Robot Schematics ------------------ None Fabricated ------------ Nothing Alien Tech Used ----------------- None Achievements -------------- None Challenges ------------ None Game ------ Seed VisualStormDetector Manual? 0 Play Time 00:17:32 Cumulative 19.6 hours Start 2024.04.15 @ 16:41:13 End 2024.04.15 @ 17:00:21 Sessions 1 Manual Loads 0 Difficulty Rogue Special Mode None Game No. 9 Rogue 5 Adventurer 4 Explorer 0 Win Type - Total 0 Types 0/0/0/0/0/0/0/0/0 Lore% 5 Gallery% 16 Achievement% 14 Wizard Run 0 Options --------- Layout 1 ASCII 0 Keyboard 0 Movement Mouse Keybinds 0 Fullscreen 1 Font 24/Smallcaps Map View 50x35 Zoom Use 0% Tactical HUD 1 Map Filters NONE Filters NONE Steam 1 RUN: 836f886e-7877-42ba-927f-54f87afaa9e0